[Event "Titled Tuesday Blitz February 07 Early 2023"]
[White "Krzyzanowski, Marcin"]
[Black "Ajay, Karthikeyan"]
[WhiteFideId "1132199"]
[BlackFideId "35011685"]
[WhiteElo "2512"]
[BlackElo "2454"]
[Result "0-1"]
[Round "07"]
[TimeControl "180+2"]
[Date "2023.02.07"]
[WhiteClock "0:00:08"]
[BlackClock "0:00:17"]

1. Nf3 {[%clk 0:03:00]}  Nf6 {[%clk 0:02:58]} 2. g3 {[%clk 0:02:59]}  g6 {[%clk 0:02:57]} 3. Bg2 {[%clk 0:02:59]}  Bg7 {[%clk 0:02:58]} 4. O-O {[%clk 0:03:00]}  c5 {[%clk 0:02:58]} 5. c4 {[%clk 0:02:59]}  Nc6 {[%clk 0:02:56]} 6. d4 {[%clk 0:02:58]}  cxd4 {[%clk 0:02:56]} 7. Nxd4 {[%clk 0:02:59]}  O-O {[%clk 0:02:56]} 8. Nc3 {[%clk 0:02:57]}  Qa5 {[%clk 0:02:57]} 9. Nb3 {[%clk 0:02:56]}  Qh5 {[%clk 0:02:55]} 10. e4 {[%clk 0:02:56]}  d6 {[%clk 0:02:55]} 11. Qxh5 {[%clk 0:02:54]}  Nxh5 {[%clk 0:02:56]} 12. Nd5 {[%clk 0:02:52]}  Nf6 {[%clk 0:02:53]} 13. Bg5 {[%clk 0:02:49]}  Nxd5 {[%clk 0:02:42]} 14. exd5 {[%clk 0:02:47]}  h6 {[%clk 0:02:40]} 15. dxc6 {[%clk 0:02:47]}  hxg5 {[%clk 0:02:40]} 16. cxb7 {[%clk 0:02:47]}  Bxb7 {[%clk 0:02:32]} 17. Bxb7 {[%clk 0:02:48]}  Rab8 {[%clk 0:02:33]} 18. Bg2 {[%clk 0:02:43]}  Rfc8 {[%clk 0:02:30]} 19. Rac1 {[%clk 0:02:44]}  Bxb2 {[%clk 0:02:30]} 20. Rc2 {[%clk 0:02:44]}  Be5 {[%clk 0:02:27]} 21. Rfc1 {[%clk 0:02:45]}  Kg7 {[%clk 0:02:23]} 22. c5 {[%clk 0:02:44]}  dxc5 {[%clk 0:02:24]} 23. Rxc5 {[%clk 0:02:45]}  Rxc5 {[%clk 0:02:23]} 24. Rxc5 {[%clk 0:02:46]}  Bd6 {[%clk 0:02:11]} 25. Rxg5 {[%clk 0:02:44]}  f5 {[%clk 0:02:11]} 26. h4 {[%clk 0:02:31]}  Kf6 {[%clk 0:01:58]} 27. f4 {[%clk 0:02:30]}  e5 {[%clk 0:01:58]} 28. h5 {[%clk 0:02:29]}  gxh5 {[%clk 0:01:58]} 29. Rxh5 {[%clk 0:02:28]}  exf4 {[%clk 0:01:59]} 30. Rh6+ {[%clk 0:02:25]}  Ke7 {[%clk 0:01:59]} 31. Bh3 {[%clk 0:02:20]}  fxg3 {[%clk 0:01:56]} 32. Bxf5 {[%clk 0:02:20]}  Bf4 {[%clk 0:01:49]} 33. Kg2 {[%clk 0:02:07]}  Bxh6 {[%clk 0:01:49]} 34. Kxg3 {[%clk 0:01:57]}  Kf6 {[%clk 0:01:49]} 35. Bd3 {[%clk 0:01:51]}  Ke5 {[%clk 0:01:48]} 36. Kf3 {[%clk 0:01:51]}  Bg5 {[%clk 0:01:39]} 37. Ke2 {[%clk 0:01:48]}  Rh8 {[%clk 0:01:37]} 38. Bb5 {[%clk 0:01:38]}  Rh2+ {[%clk 0:01:36]} 39. Kd3 {[%clk 0:01:39]}  Rxa2 {[%clk 0:01:36]} 40. Kc4 {[%clk 0:01:39]}  Be3 {[%clk 0:01:32]} 41. Kd3 {[%clk 0:01:39]}  Ra3 {[%clk 0:01:31]} 42. Bc4 {[%clk 0:01:39]}  Bb6 {[%clk 0:01:31]} 43. Kc3 {[%clk 0:01:36]}  Ra4 {[%clk 0:01:25]} 44. Nc1 {[%clk 0:01:27]}  Ba5+ {[%clk 0:01:23]} 45. Kd3 {[%clk 0:01:27]}  Rb4 {[%clk 0:01:16]} 46. Nb3 {[%clk 0:01:26]}  Bb6 {[%clk 0:01:14]} 47. Kc3 {[%clk 0:01:26]}  a5 {[%clk 0:01:15]} 48. Bd3 {[%clk 0:01:08]}  Kd5 {[%clk 0:01:07]} 49. Bc2 {[%clk 0:01:05]}  Rh4 {[%clk 0:01:02]} 50. Nc1 {[%clk 0:01:03]}  a4 {[%clk 0:00:59]} 51. Nd3 {[%clk 0:01:00]}  Rc4+ {[%clk 0:00:54]} 52. Kb2 {[%clk 0:00:58]}  Bd4+ {[%clk 0:00:54]} 53. Kb1 {[%clk 0:00:57]}  Bh8 {[%clk 0:00:38]} 54. Bd1 {[%clk 0:00:57]}  Rh4 {[%clk 0:00:34]} 55. Ka2 {[%clk 0:00:53]}  Kc6 {[%clk 0:00:28]} 56. Ka3 {[%clk 0:00:49]}  Kb5 {[%clk 0:00:29]} 57. Be2 {[%clk 0:00:45]}  Ka5 {[%clk 0:00:29]} 58. Nc5 {[%clk 0:00:38]}  Rh3+ {[%clk 0:00:29]} 59. Nd3 {[%clk 0:00:36]}  Re3 {[%clk 0:00:27]} 60. Bf1 {[%clk 0:00:36]}  Bd4 {[%clk 0:00:26]} 61. Ka2 {[%clk 0:00:35]}  Rf3 {[%clk 0:00:26]} 62. Be2 {[%clk 0:00:35]}  Rh3 {[%clk 0:00:26]} 63. Ka3 {[%clk 0:00:33]}  Bc5+ {[%clk 0:00:23]} 64. Ka2 {[%clk 0:00:31]}  Bd6 {[%clk 0:00:24]} 65. Kb2 {[%clk 0:00:31]}  Rh2 {[%clk 0:00:25]} 66. Nc1 {[%clk 0:00:17]}  Bf4 {[%clk 0:00:25]} 67. Nd3 {[%clk 0:00:10]}  Rxe2+ {[%clk 0:00:24]} 68. Kc3 {[%clk 0:00:11]}  Bd6 {[%clk 0:00:24]} 69. Nb2 {[%clk 0:00:10]}  Rxb2 {[%clk 0:00:24]} 70. Kxb2 {[%clk 0:00:10]}  Kb4 {[%clk 0:00:25]} 71. Kc2 {[%clk 0:00:09]}  a3 {[%clk 0:00:26]} 72. Kc1 {[%clk 0:00:10]}  Kb3 {[%clk 0:00:27]} 73. Kb1 {[%clk 0:00:10]}  a2+ {[%clk 0:00:27]} 74. Kc1 {[%clk 0:00:11]}  Kc3 {[%clk 0:00:22]} 75. Kd1 {[%clk 0:00:09]}  Kd3 {[%clk 0:00:22]} 76. Ke1 {[%clk 0:00:08]}  Bc5 {[%clk 0:00:21]} 77. Kf1 {[%clk 0:00:08]}  a1=Q+ {[%clk 0:00:20]} 78. Kg2 {[%clk 0:00:08]}  Ke4 {[%clk 0:00:18]} 79. Kg3 {[%clk 0:00:07]}  Qg1+ {[%clk 0:00:17]} 80. Kh3 {[%clk 0:00:08]}  Kf3 {[%clk 0:00:17]} 81. Kh4 {[%clk 0:00:08]}  Be7+ {[%clk 0:00:17]} 82. Kh5 {[%clk 0:00:08]}  Qg5# {[%clk 0:00:17]} 0-1


[Site "https://www.chess.com"]

[Event "Titled Tuesday Blitz February 07 Early 2023"]
[White "Md, Imran"]
[Black "Grigorjev, Iljya"]
[WhiteFideId "25748580"]
[BlackFideId "24159565"]
[WhiteElo "2284"]
[BlackElo "2426"]
[Result "0-1"]
[Round "07"]
[TimeControl "180+2"]
[Date "2023.02.07"]
[WhiteClock "0:01:27"]
[BlackClock "0:01:39"]

1. e4 {[%clk 0:03:00]}  e5 {[%clk 0:03:00]} 2. Nf3 {[%clk 0:02:59]}  Nc6 {[%clk 0:03:00]} 3. Bb5 {[%clk 0:02:58]}  a6 {[%clk 0:03:00]} 4. Ba4 {[%clk 0:02:56]}  Nf6 {[%clk 0:02:59]} 5. O-O {[%clk 0:02:54]}  b5 {[%clk 0:03:00]} 6. Bb3 {[%clk 0:02:52]}  Bc5 {[%clk 0:03:00]} 7. c3 {[%clk 0:02:46]}  d6 {[%clk 0:03:00]} 8. a4 {[%clk 0:02:37]}  Rb8 {[%clk 0:03:00]} 9. d4 {[%clk 0:02:35]}  Bb6 {[%clk 0:03:00]} 10. a5 {[%clk 0:02:33]}  Ba7 {[%clk 0:03:00]} 11. Be3 {[%clk 0:02:26]}  Bg4 {[%clk 0:03:00]} 12. Nbd2 {[%clk 0:02:24]}  exd4 {[%clk 0:02:59]} 13. cxd4 {[%clk 0:02:22]}  O-O {[%clk 0:03:00]} 14. h3 {[%clk 0:02:19]}  Bh5 {[%clk 0:03:00]} 15. Qc2 {[%clk 0:02:14]}  Nb4 {[%clk 0:02:42]} 16. Qc3 {[%clk 0:02:13]}  c5 {[%clk 0:02:42]} 17. d5 {[%clk 0:02:09]}  Re8 {[%clk 0:02:26]} 18. Bg5 {[%clk 0:02:05]}  h6 {[%clk 0:02:23]} 19. Bh4 {[%clk 0:01:59]}  g5 {[%clk 0:01:39]} 20. Nxg5 {[%clk 0:01:30]}  hxg5 {[%clk 0:01:40]} 21. Bxg5 {[%clk 0:01:28]}  Re5 {[%clk 0:01:40]} 22. Rfe1 {[%clk 0:01:27]}  Rxg5 {[%clk 0:01:39]} 0-1


[Site "https://www.chess.com"]

[Event "Titled Tuesday Blitz February 07 Early 2023"]
[White "Borges Feria, Yasel"]
[Black "Alex_Sahakyan2006"]
[WhiteFideId "3504921"]
[WhiteElo "2439"]
[BlackElo "2712"]
[Result "0-1"]
[Round "07"]
[TimeControl "180+2"]
[Date "2023.02.07"]
[WhiteClock "0:00:23"]
[BlackClock "0:00:19"]

1. d4 {[%clk 0:02:59]}  Nf6 {[%clk 0:02:59]} 2. c4 {[%clk 0:02:59]}  c5 {[%clk 0:02:59]} 3. d5 {[%clk 0:02:58]}  b5 {[%clk 0:02:59]} 4. Qc2 {[%clk 0:02:57]}  b4 {[%clk 0:02:56]} 5. e4 {[%clk 0:02:56]}  d6 {[%clk 0:02:55]} 6. Bd3 {[%clk 0:02:55]}  g6 {[%clk 0:02:53]} 7. b3 {[%clk 0:02:38]}  Bg7 {[%clk 0:02:52]} 8. Bb2 {[%clk 0:02:37]}  O-O {[%clk 0:02:51]} 9. Nf3 {[%clk 0:02:37]}  a5 {[%clk 0:02:49]} 10. a4 {[%clk 0:02:36]}  e5 {[%clk 0:02:47]} 11. dxe6 {[%clk 0:02:05]}  Bxe6 {[%clk 0:02:29]} 12. O-O {[%clk 0:02:03]}  Bg4 {[%clk 0:02:28]} 13. Nbd2 {[%clk 0:02:02]}  Nc6 {[%clk 0:02:27]} 14. h3 {[%clk 0:02:01]}  Bxf3 {[%clk 0:02:27]} 15. Nxf3 {[%clk 0:02:01]}  Nd7 {[%clk 0:02:26]} 16. Rad1 {[%clk 0:02:00]}  Bxb2 {[%clk 0:02:16]} 17. Qxb2 {[%clk 0:02:01]}  Nde5 {[%clk 0:02:14]} 18. Be2 {[%clk 0:01:52]}  Qf6 {[%clk 0:01:24]} 19. Kh1 {[%clk 0:01:45]}  Rad8 {[%clk 0:01:15]} 20. Rd5 {[%clk 0:01:38]}  Qf4 {[%clk 0:01:14]} 21. Rfd1 {[%clk 0:01:05]}  Qxe4 {[%clk 0:00:44]} 22. Rxd6 {[%clk 0:01:01]}  Rxd6 {[%clk 0:00:39]} 23. Rxd6 {[%clk 0:01:02]}  Nxf3 {[%clk 0:00:32]} 24. Bxf3 {[%clk 0:01:03]}  Qe1+ {[%clk 0:00:32]} 25. Kh2 {[%clk 0:01:02]}  Nd4 {[%clk 0:00:32]} 26. Rd5 {[%clk 0:00:53]}  Qe7 {[%clk 0:00:22]} 27. Kg1 {[%clk 0:00:36]}  Re8 {[%clk 0:00:19]} 28. Kh2 {[%clk 0:00:28]}  Qc7+ {[%clk 0:00:19]} 29. g3 {[%clk 0:00:22]}  Nxf3+ {[%clk 0:00:18]} 30. Kg2 {[%clk 0:00:23]}  Nd4 {[%clk 0:00:19]} 0-1


[Site "https://www.chess.com"]

[Event "Titled Tuesday Blitz February 07 Early 2023"]
[White "Postny, Evgeny"]
[Black "Gascon Del Nogal, Jose Rafael"]
[WhiteFideId "2804344"]
[BlackFideId "3902463"]
[WhiteElo "2549"]
[BlackElo "2459"]
[Result "1-0"]
[Round "07"]
[TimeControl "180+2"]
[Date "2023.02.07"]
[WhiteClock "0:00:08"]
[BlackClock "0:00:02"]

1. Nf3 {[%clk 0:03:00]}  d5 {[%clk 0:02:59]} 2. c4 {[%clk 0:03:00]}  d4 {[%clk 0:02:58]} 3. g3 {[%clk 0:03:00]}  f6 {[%clk 0:02:53]} 4. Bg2 {[%clk 0:03:00]}  e5 {[%clk 0:02:53]} 5. d3 {[%clk 0:03:00]}  c5 {[%clk 0:02:53]} 6. O-O {[%clk 0:03:00]}  Nc6 {[%clk 0:02:53]} 7. Na3 {[%clk 0:02:54]}  Bd6 {[%clk 0:02:46]} 8. Nc2 {[%clk 0:02:54]}  Nge7 {[%clk 0:02:45]} 9. a3 {[%clk 0:02:53]}  a5 {[%clk 0:02:45]} 10. b3 {[%clk 0:02:53]}  O-O {[%clk 0:02:44]} 11. Bd2 {[%clk 0:02:53]}  Be6 {[%clk 0:02:24]} 12. b4 {[%clk 0:02:51]}  axb4 {[%clk 0:02:22]} 13. axb4 {[%clk 0:02:50]}  Rxa1 {[%clk 0:02:00]} 14. Qxa1 {[%clk 0:02:51]}  b6 {[%clk 0:02:00]} 15. Rb1 {[%clk 0:02:44]}  Qa8 {[%clk 0:01:58]} 16. Qxa8 {[%clk 0:02:32]}  Rxa8 {[%clk 0:01:58]} 17. b5 {[%clk 0:02:32]}  Nd8 {[%clk 0:01:12]} 18. Nfxd4 {[%clk 0:02:23]}  Ra2 {[%clk 0:01:12]} 19. Nxe6 {[%clk 0:02:22]}  Nxe6 {[%clk 0:01:05]} 20. Rc1 {[%clk 0:02:22]}  Nd4 {[%clk 0:01:03]} 21. Nxd4 {[%clk 0:02:21]}  cxd4 {[%clk 0:01:00]} 22. Rd1 {[%clk 0:02:10]}  Bc5 {[%clk 0:01:00]} 23. f4 {[%clk 0:01:58]}  Nf5 {[%clk 0:00:53]} 24. fxe5 {[%clk 0:01:43]}  fxe5 {[%clk 0:00:51]} 25. Bd5+ {[%clk 0:01:40]}  Kh8 {[%clk 0:00:40]} 26. Rf1 {[%clk 0:01:38]}  g6 {[%clk 0:00:37]} 27. g4 {[%clk 0:01:25]}  Ne3 {[%clk 0:00:28]} 28. Bxe3 {[%clk 0:01:14]}  dxe3 {[%clk 0:00:29]} 29. Bf3 {[%clk 0:01:13]}  Kg7 {[%clk 0:00:28]} 30. g5 {[%clk 0:01:10]}  h6 {[%clk 0:00:28]} 31. Kg2 {[%clk 0:00:45]}  hxg5 {[%clk 0:00:27]} 32. Kg3 {[%clk 0:00:44]}  Kh6 {[%clk 0:00:18]} 33. Kg4 {[%clk 0:00:44]}  Bd4 {[%clk 0:00:18]} 34. Rc1 {[%clk 0:00:39]}  Bc5 {[%clk 0:00:17]} 35. Rg1 {[%clk 0:00:34]}  Bd4 {[%clk 0:00:17]} 36. Rf1 {[%clk 0:00:23]}  Bc5 {[%clk 0:00:14]} 37. Rd1 {[%clk 0:00:19]}  Bd4 {[%clk 0:00:14]} 38. Rb1 {[%clk 0:00:18]}  Bc5 {[%clk 0:00:14]} 39. Kg3 {[%clk 0:00:17]}  Bd4 {[%clk 0:00:14]} 40. Bg4 {[%clk 0:00:17]}  Bc5 {[%clk 0:00:14]} 41. Kf3 {[%clk 0:00:18]}  Ra8 {[%clk 0:00:12]} 42. Ke4 {[%clk 0:00:15]}  Bd4 {[%clk 0:00:11]} 43. Rf1 {[%clk 0:00:12]}  Kg7 {[%clk 0:00:12]} 44. Kd5 {[%clk 0:00:11]}  Rf8 {[%clk 0:00:11]} 45. Rb1 {[%clk 0:00:06]}  Rf4 {[%clk 0:00:08]} 46. h3 {[%clk 0:00:06]}  Rf6 {[%clk 0:00:07]} 47. Rb3 {[%clk 0:00:05]}  Kf7 {[%clk 0:00:07]} 48. Ra3 {[%clk 0:00:05]}  Kg7 {[%clk 0:00:04]} 49. Ra7+ {[%clk 0:00:05]}  Rf7 {[%clk 0:00:04]} 50. Ra8 {[%clk 0:00:04]}  Rf8 {[%clk 0:00:05]} 51. Ra4 {[%clk 0:00:03]}  Rd8+ {[%clk 0:00:04]} 52. Kc6 {[%clk 0:00:03]}  Rf8 {[%clk 0:00:04]} 53. Ra7+ {[%clk 0:00:03]}  Rf7 {[%clk 0:00:05]} 54. Ra8 {[%clk 0:00:03]}  Rf6+ {[%clk 0:00:05]} 55. Kd5 {[%clk 0:00:02]}  Rf7 {[%clk 0:00:04]} 56. Ra6 {[%clk 0:00:02]}  Rf8 {[%clk 0:00:04]} 57. Ra2 {[%clk 0:00:01]}  Rd8+ {[%clk 0:00:04]} 58. Kc6 {[%clk 0:00:02]}  Rf8 {[%clk 0:00:05]} 59. Ra7+ {[%clk 0:00:02]}  Rf7 {[%clk 0:00:05]} 60. Ra8 {[%clk 0:00:03]}  Rf8 {[%clk 0:00:05]} 61. Rxf8 {[%clk 0:00:03]}  Kxf8 {[%clk 0:00:05]} 62. Kd5 {[%clk 0:00:03]}  Ke7 {[%clk 0:00:05]} 63. c5 {[%clk 0:00:04]}  bxc5 {[%clk 0:00:02]} 64. Kc6 {[%clk 0:00:04]}  Kd8 {[%clk 0:00:02]} 65. b6 {[%clk 0:00:04]}  c4 {[%clk 0:00:02]} 66. b7 {[%clk 0:00:04]}  Ba7 {[%clk 0:00:01]} 67. dxc4 {[%clk 0:00:04]}  e4 {[%clk 0:00:01]} 68. Be6 {[%clk 0:00:04]}  Bb8 {[%clk 0:00:01]} 69. Bg4 {[%clk 0:00:04]}  Bf4 {[%clk 0:00:01]} 70. c5 {[%clk 0:00:05]}  Bb8 {[%clk 0:00:01]} 71. Kb6 {[%clk 0:00:05]}  Bf4 {[%clk 0:00:02]} 72. c6 {[%clk 0:00:05]}  Bc7+ {[%clk 0:00:03]} 73. Kc5 {[%clk 0:00:05]}  Bf4 {[%clk 0:00:03]} 74. Kb6 {[%clk 0:00:06]}  Be5 {[%clk 0:00:03]} 75. Ka7 {[%clk 0:00:07]}  Bd4+ {[%clk 0:00:03]} 76. Ka8 {[%clk 0:00:07]}  Be5 {[%clk 0:00:01]} 77. b8=Q+ {[%clk 0:00:07]}  Bxb8 {[%clk 0:00:02]} 78. Kxb8 {[%clk 0:00:08]} 1-0


[Site "https://www.chess.com"]

[Event "Titled Tuesday Blitz February 07 Early 2023"]
[White "Vasquez Schroeder, Rodrigo"]
[Black "Shuvalova, Polina"]
[WhiteFideId "3400042"]
[BlackFideId "24171760"]
[WhiteElo "2524"]
[BlackElo "2484"]
[Result "1-0"]
[Round "07"]
[TimeControl "180+2"]
[Date "2023.02.07"]
[WhiteClock "0:00:30"]
[BlackClock "0:00:07"]

1. d4 {[%clk 0:03:00]}  Nf6 {[%clk 0:02:59]} 2. c4 {[%clk 0:02:59]}  e6 {[%clk 0:02:59]} 3. Nf3 {[%clk 0:02:59]}  d5 {[%clk 0:02:59]} 4. Nc3 {[%clk 0:02:59]}  c5 {[%clk 0:02:58]} 5. e3 {[%clk 0:02:58]}  Nc6 {[%clk 0:02:51]} 6. cxd5 {[%clk 0:02:54]}  exd5 {[%clk 0:02:51]} 7. Bb5 {[%clk 0:02:54]}  cxd4 {[%clk 0:02:51]} 8. exd4 {[%clk 0:02:50]}  Bg4 {[%clk 0:02:40]} 9. O-O {[%clk 0:02:40]}  Be7 {[%clk 0:02:26]} 10. Qd3 {[%clk 0:02:28]}  Bxf3 {[%clk 0:02:12]} 11. Qxf3 {[%clk 0:02:27]}  O-O {[%clk 0:02:12]} 12. Bxc6 {[%clk 0:02:26]}  bxc6 {[%clk 0:02:11]} 13. Bf4 {[%clk 0:02:26]}  h6 {[%clk 0:02:02]} 14. b3 {[%clk 0:02:17]}  Bd6 {[%clk 0:01:52]} 15. Rac1 {[%clk 0:02:14]}  Re8 {[%clk 0:01:45]} 16. h3 {[%clk 0:02:12]}  Bxf4 {[%clk 0:01:28]} 17. Qxf4 {[%clk 0:02:12]}  Re6 {[%clk 0:01:22]} 18. Rfe1 {[%clk 0:02:07]}  Qd7 {[%clk 0:01:21]} 19. Na4 {[%clk 0:02:05]}  Rae8 {[%clk 0:01:10]} 20. Re5 {[%clk 0:01:58]}  Rxe5 {[%clk 0:01:03]} 21. dxe5 {[%clk 0:01:57]}  Ne4 {[%clk 0:01:03]} 22. f3 {[%clk 0:01:30]}  Ng5 {[%clk 0:01:03]} 23. Nc5 {[%clk 0:01:29]}  Qe7 {[%clk 0:00:56]} 24. Nd3 {[%clk 0:01:29]}  Ne6 {[%clk 0:00:55]} 25. Qg4 {[%clk 0:01:11]}  Rc8 {[%clk 0:00:41]} 26. f4 {[%clk 0:01:11]}  Qd7 {[%clk 0:00:20]} 27. h4 {[%clk 0:01:03]}  Nf8 {[%clk 0:00:16]} 28. f5 {[%clk 0:01:00]}  Re8 {[%clk 0:00:15]} 29. b4 {[%clk 0:00:55]}  d4 {[%clk 0:00:15]} 30. Qe4 {[%clk 0:00:52]}  Rc8 {[%clk 0:00:13]} 31. Rc4 {[%clk 0:00:52]}  Qe7 {[%clk 0:00:08]} 32. Rxd4 {[%clk 0:00:50]}  Re8 {[%clk 0:00:08]} 33. Qxc6 {[%clk 0:00:47]}  Rd8 {[%clk 0:00:05]} 34. Rxd8 {[%clk 0:00:43]}  Qxd8 {[%clk 0:00:06]} 35. Qc4 {[%clk 0:00:43]}  Nd7 {[%clk 0:00:05]} 36. Qd4 {[%clk 0:00:43]}  Qc7 {[%clk 0:00:05]} 37. a3 {[%clk 0:00:36]}  Kf8 {[%clk 0:00:05]} 38. Nc5 {[%clk 0:00:31]}  Nxc5 {[%clk 0:00:05]} 39. Qxc5+ {[%clk 0:00:31]}  Qxc5+ {[%clk 0:00:05]} 40. bxc5 {[%clk 0:00:32]}  Ke7 {[%clk 0:00:06]} 41. Kf2 {[%clk 0:00:31]}  Kd7 {[%clk 0:00:06]} 42. Ke3 {[%clk 0:00:31]}  Kc6 {[%clk 0:00:07]} 43. Kd4 {[%clk 0:00:32]}  a6 {[%clk 0:00:07]} 44. g4 {[%clk 0:00:31]}  a5 {[%clk 0:00:07]} 45. a4 {[%clk 0:00:30]} 1-0


[Site "https://www.chess.com"]

[Event "Titled Tuesday Blitz February 07 Early 2023"]
[White "Makarian, Rudik"]
[Black "Tristan, Leonardo"]
[WhiteFideId "44105681"]
[BlackFideId "113816"]
[WhiteElo "2545"]
[BlackElo "2545"]
[Result "1-0"]
[Round "07"]
[TimeControl "180+2"]
[Date "2023.02.07"]
[WhiteClock "0:00:36"]
[BlackClock "0:00:02"]

1. d4 {[%clk 0:02:58]}  d5 {[%clk 0:03:00]} 2. c4 {[%clk 0:02:58]}  e6 {[%clk 0:03:00]} 3. Nf3 {[%clk 0:02:58]}  Nf6 {[%clk 0:03:00]} 4. Nc3 {[%clk 0:02:59]}  a6 {[%clk 0:03:00]} 5. cxd5 {[%clk 0:02:58]}  exd5 {[%clk 0:03:01]} 6. Bg5 {[%clk 0:02:59]}  Be6 {[%clk 0:03:01]} 7. Qb3 {[%clk 0:02:59]}  Nbd7 {[%clk 0:02:48]} 8. e3 {[%clk 0:02:59]}  b5 {[%clk 0:02:47]} 9. Bd3 {[%clk 0:02:59]}  c5 {[%clk 0:02:46]} 10. Qc2 {[%clk 0:02:57]}  c4 {[%clk 0:02:44]} 11. Bf5 {[%clk 0:02:57]}  Bd6 {[%clk 0:02:07]} 12. O-O {[%clk 0:02:41]}  h6 {[%clk 0:01:57]} 13. Bf4 {[%clk 0:02:36]}  Qc7 {[%clk 0:01:42]} 14. Bg3 {[%clk 0:02:31]}  O-O {[%clk 0:01:41]} 15. Ne2 {[%clk 0:02:26]}  Bxg3 {[%clk 0:01:32]} 16. Nxg3 {[%clk 0:02:23]}  Qd6 {[%clk 0:01:23]} 17. Rfe1 {[%clk 0:02:19]}  Rae8 {[%clk 0:01:21]} 18. Rad1 {[%clk 0:02:19]}  Kh8 {[%clk 0:01:06]} 19. Bxe6 {[%clk 0:02:17]}  Qxe6 {[%clk 0:01:04]} 20. a3 {[%clk 0:02:14]}  Ne4 {[%clk 0:01:04]} 21. Nxe4 {[%clk 0:02:13]}  Qxe4 {[%clk 0:01:04]} 22. Qxe4 {[%clk 0:02:13]}  Rxe4 {[%clk 0:01:05]} 23. Nd2 {[%clk 0:02:12]}  Re6 {[%clk 0:01:05]} 24. Nb1 {[%clk 0:02:11]}  Rfe8 {[%clk 0:01:01]} 25. Nc3 {[%clk 0:02:12]}  Nb6 {[%clk 0:01:02]} 26. Re2 {[%clk 0:02:09]}  f5 {[%clk 0:01:01]} 27. Rde1 {[%clk 0:02:08]}  Kg8 {[%clk 0:00:57]} 28. f3 {[%clk 0:02:07]}  Kf7 {[%clk 0:00:57]} 29. Kf2 {[%clk 0:02:07]}  Ke7 {[%clk 0:00:56]} 30. h3 {[%clk 0:02:05]}  Kd6 {[%clk 0:00:56]} 31. g4 {[%clk 0:02:06]}  Rf8 {[%clk 0:00:49]} 32. Kg3 {[%clk 0:02:04]}  Ref6 {[%clk 0:00:46]} 33. Rf2 {[%clk 0:01:51]}  f4+ {[%clk 0:00:37]} 34. exf4 {[%clk 0:01:41]}  Rxf4 {[%clk 0:00:38]} 35. Ne2 {[%clk 0:01:40]}  R4f6 {[%clk 0:00:38]} 36. Nc3 {[%clk 0:01:37]}  Kc6 {[%clk 0:00:38]} 37. f4 {[%clk 0:01:37]}  a5 {[%clk 0:00:38]} 38. f5 {[%clk 0:01:36]}  b4 {[%clk 0:00:38]} 39. axb4 {[%clk 0:01:37]}  axb4 {[%clk 0:00:39]} 40. Na2 {[%clk 0:01:35]}  Kb5 {[%clk 0:00:40]} 41. Re5 {[%clk 0:01:34]}  Ra8 {[%clk 0:00:36]} 42. Nc1 {[%clk 0:01:34]}  g5 {[%clk 0:00:18]} 43. fxg6 {[%clk 0:01:31]}  Rxg6 {[%clk 0:00:19]} 44. Ne2 {[%clk 0:01:31]}  Rd6 {[%clk 0:00:16]} 45. h4 {[%clk 0:01:31]}  Ra2 {[%clk 0:00:15]} 46. Nf4 {[%clk 0:01:32]}  c3 {[%clk 0:00:14]} 47. bxc3 {[%clk 0:01:32]}  Rxf2 {[%clk 0:00:14]} 48. Kxf2 {[%clk 0:01:32]}  bxc3 {[%clk 0:00:14]} 49. Ke2 {[%clk 0:01:33]}  Kc4 {[%clk 0:00:14]} 50. Re7 {[%clk 0:01:27]}  Kxd4 {[%clk 0:00:11]} 51. g5 {[%clk 0:01:27]}  hxg5 {[%clk 0:00:11]} 52. hxg5 {[%clk 0:01:28]}  Rc6 {[%clk 0:00:09]} 53. Kd1 {[%clk 0:01:26]}  Na4 {[%clk 0:00:08]} 54. Kc2 {[%clk 0:01:26]}  Rb6 {[%clk 0:00:08]} 55. Ne2+ {[%clk 0:01:26]}  Kc5 {[%clk 0:00:05]} 56. Ra7 {[%clk 0:01:21]}  Rb2+ {[%clk 0:00:04]} 57. Kd3 {[%clk 0:01:21]}  Rd2+ {[%clk 0:00:04]} 58. Ke3 {[%clk 0:01:22]}  d4+ {[%clk 0:00:04]} 59. Kf3 {[%clk 0:01:21]}  c2 {[%clk 0:00:02]} 60. Nc1 {[%clk 0:01:18]}  Rd1 {[%clk 0:00:02]} 61. Rc7+ {[%clk 0:01:17]}  Kd5 {[%clk 0:00:02]} 62. Rxc2 {[%clk 0:01:18]}  Rg1 {[%clk 0:00:03]} 63. Nd3 {[%clk 0:01:10]}  Rxg5 {[%clk 0:00:02]} 64. Ra2 {[%clk 0:01:11]}  Nc5 {[%clk 0:00:02]} 65. Nxc5 {[%clk 0:01:10]}  Rf5+ {[%clk 0:00:02]} 66. Kg4 {[%clk 0:01:10]}  Rf8 {[%clk 0:00:02]} 67. Nd3 {[%clk 0:01:09]}  Ke4 {[%clk 0:00:03]} 68. Ra3 {[%clk 0:01:06]}  Rg8+ {[%clk 0:00:03]} 69. Kh3 {[%clk 0:01:07]}  Rh8+ {[%clk 0:00:03]} 70. Kg2 {[%clk 0:01:07]}  Rg8+ {[%clk 0:00:03]} 71. Kf2 {[%clk 0:01:08]}  Rh8 {[%clk 0:00:02]} 72. Ke2 {[%clk 0:01:07]}  Rh2+ {[%clk 0:00:01]} 73. Nf2+ {[%clk 0:01:08]}  Kf4 {[%clk 0:00:02]} 74. Ra4 {[%clk 0:01:04]}  Ke5 {[%clk 0:00:02]} 75. Kf3 {[%clk 0:01:05]}  Kd5 {[%clk 0:00:02]} 76. Ra8 {[%clk 0:00:57]}  Rh7 {[%clk 0:00:02]} 77. Rc8 {[%clk 0:00:55]}  Re7 {[%clk 0:00:02]} 78. Rd8+ {[%clk 0:00:52]}  Kc4 {[%clk 0:00:02]} 79. Ne4 {[%clk 0:00:52]}  Rf7+ {[%clk 0:00:02]} 80. Ke2 {[%clk 0:00:50]}  d3+ {[%clk 0:00:02]} 81. Rxd3 {[%clk 0:00:43]}  Re7 {[%clk 0:00:03]} 82. Ke3 {[%clk 0:00:43]}  Re8 {[%clk 0:00:04]} 83. Rc3+ {[%clk 0:00:42]}  Kd5 {[%clk 0:00:04]} 84. Rc5+ {[%clk 0:00:43]}  Ke6 {[%clk 0:00:03]} 85. Ra5 {[%clk 0:00:42]}  Kf7 {[%clk 0:00:03]} 86. Kf4 {[%clk 0:00:41]}  Rf8 {[%clk 0:00:02]} 87. Ke5 {[%clk 0:00:41]}  Re8+ {[%clk 0:00:02]} 88. Kf5 {[%clk 0:00:41]}  Rd8 {[%clk 0:00:02]} 89. Ra7+ {[%clk 0:00:41]}  Kf8 {[%clk 0:00:03]} 90. Kf6 {[%clk 0:00:37]}  Rb8 {[%clk 0:00:03]} 91. Ng5 {[%clk 0:00:35]}  Kg8 {[%clk 0:00:02]} 92. Rg7+ {[%clk 0:00:34]}  Kf8 {[%clk 0:00:02]} 93. Ne6+ {[%clk 0:00:35]}  Ke8 {[%clk 0:00:02]} 94. Re7# {[%clk 0:00:36]} 1-0


[Site "https://www.chess.com"]